fUSD/lending_fUSD_20260217
["ID","MTS","AMOUNT","RATE_DAILY","PERIOD"]
[405863831,1771369840994,-500.0,8.767e-05,2]
[405863832,1771369841003,-500.0,8.767e-05,2]
[405863833,1771369841012,-500.0,8.767e-05,2]
[405863834,1771369841021,-500.0,8.767e-05,2]
[405863835,1771369841031,-500.0,8.767e-05,2]
[405863836,1771369841040,-500.0,8.767e-05,2]
[405863837,1771369841048,-500.0,8.822e-05,2]
[405863838,1771369841058,-361.9355564,8.822e-05,2]
[405863839,1771369841067,-500.0,8.822e-05,2]
[405863840,1771369841076,-596.0,8.822e-05,2]
[405863841,1771369841085,-512.26030593,8.822e-05,2]
[405863843,1771369841097,-500.0,8.822e-05,2]
[405863844,1771369841106,-500.0,8.822e-05,2]
[405863845,1771369841115,-500.0,8.822e-05,2]
[405863846,1771369841124,-500.0,8.822e-05,2]
[405863847,1771369841134,-163.51122534,8.822e-05,2]
[405863848,1771369841143,-500.0,8.822e-05,2]
[405863849,1771369841152,-500.0,8.877e-05,2]
[405863850,1771369841162,-500.0,8.877e-05,2]
[405863851,1771369841171,-596.0,8.877e-05,2]
[405863852,1771369841180,-500.0,8.877e-05,2]
[405863853,1771369841190,-500.0,8.877e-05,2]
[405863854,1771369841199,-500.0,8.877e-05,2]
[405863855,1771369841427,-500.0,8.877e-05,2]
[405863856,1771369841444,-500.0,8.877e-05,2]
[405863857,1771369841455,-500.0,8.931e-05,2]
[405863858,1771369841464,-498.26652801,8.931e-05,2]
[405863859,1771369841473,-596.0,8.931e-05,2]
[405863860,1771369841482,-500.0,8.931e-05,2]
[405863861,1771369841491,-500.0,8.931e-05,2]
[405863862,1771369841501,-442.49812506,8.931e-05,2]
[405863863,1771369841511,-500.0,8.931e-05,2]
[405863864,1771369841521,-500.0,8.931e-05,2]
[405863865,1771369841530,-611.76249723,8.986e-05,2]
[405863866,1771369841542,-596.0,8.986e-05,2]
[405863867,1771369841551,-500.0,8.986e-05,2]
[405863868,1771369841560,-500.0,8.986e-05,2]
[405863869,1771369841570,-500.0,8.986e-05,2]
[405863870,1771369841579,-500.0,8.986e-05,2]
[405863871,1771369841589,-596.0,9.041e-05,2]
[405863872,1771369841598,-500.0,9.041e-05,2]
[405863873,1771369841607,-500.0,9.041e-05,2]
[405863874,1771369841617,-500.0,9.041e-05,2]
[405863875,1771369841626,-481.0942881,9.041e-05,2]
[405863876,1771369841635,-500.0,9.041e-05,2]
[405863877,1771369841645,-433.0,9.072e-05,2]
[405863878,1771369841654,-587.0,9.072e-05,2]
[405863879,1771369841663,-2351.0,9.072e-05,2]
[405863880,1771369841672,-355.76,9.092e-05,2]
[405863881,1771369841681,-596.0,9.096e-05,2]
[405863882,1771369841691,-500.0,9.096e-05,2]
[405863883,1771369841700,-266.33885806,9.096e-05,2]
[405863884,1771369841710,-500.0,9.096e-05,2]
[405863885,1771369841719,-393.71,9.132e-05,2]
[405863886,1771369841729,-596.0,9.151e-05,2]
[405863887,1771369841738,-500.0,9.151e-05,2]
[405863888,1771369841748,-514.37004621,9.151e-05,2]
[405863889,1771369841757,-596.0,9.205e-05,2]
[405863890,1771369841766,-280.68179644,9.205e-05,2]
[405863891,1771369841776,-596.0,9.26e-05,2]
[405863892,1771369841785,-596.0,9.315e-05,2]
[405863893,1771369841794,-500.0,9.315e-05,2]
[405863894,1771369841803,-596.0,9.37e-05,2]
[405863895,1771369841813,-596.0,9.424e-05,2]
[405863896,1771369841822,-600.2655769,9.479e-05,2]
[405863897,1771369841831,-250.0,9.582e-05,2]
[405863898,1771369841841,-500.0,9.589e-05,2]
[405863899,1771369841850,-393.71,9.589e-05,2]
[405863900,1771369841859,-1401.0,9.67e-05,2]
[405863901,1771369841868,-14381.39,9.67e-05,2]
[405863902,1771369841877,-9999.99,9.67e-05,2]
[405863903,1771369841888,-500.0,9.863e-05,2]
[405863904,1771369841897,-736.0,9.98e-05,2]
[405863905,1771369841906,-823.0,9.98e-05,2]
[405863906,1771369841915,-3292.0,9.98e-05,2]
[405863907,1771369841925,-725.29300865,0.0001,2]
[405863908,1771369841934,-725.29300865,0.0001,2]
[405863909,1771369841943,-725.29300865,0.0001,2]
[405863910,1771369841952,-171.09696683,0.0001,2]
[405863911,1771369841961,-500.0,0.0001,2]
[405863912,1771369841970,-200.0,0.0001,2]
[405863913,1771369841979,-500.0,0.0001,2]
[405863914,1771369841988,-500.0,0.0001,2]
[405863915,1771369842010,-164.43370107,0.0001,2]
[405863916,1771369842024,-500.0,0.0001,2]
[405863917,1771369842034,-151.0,0.0001,2]
[405863918,1771369842044,-500.0,0.0001,2]
[405863919,1771369842053,-151.0,0.0001,2]
[405863920,1771369842063,-500.0,0.0001,2]
[405863921,1771369842072,-996.02009371,0.0001,2]
[405863922,1771369842081,-151.0,0.0001,2]
[405863923,1771369842091,-500.0,0.0001,2]
[405863924,1771369842103,-151.0,0.0001,2]
[405863925,1771369842112,-151.0,0.0001,2]
[405863926,1771369842121,-500.0,0.0001,2]
[405863927,1771369842131,-151.0,0.0001,2]
[405863928,1771369842141,-151.0,0.0001,2]
[405863929,1771369842150,-151.0,0.0001,2]
[405863930,1771369842159,-500.0,0.0001,2]
[405863931,1771369842169,-151.0,0.0001,2]
[405863932,1771369842179,-151.0,0.0001,2]
[405863933,1771369842188,-500.0,0.0001,2]
[405863934,1771369842197,-151.0,0.0001,2]
[405863935,1771369842206,-151.0,0.0001,2]
[405863936,1771369842216,-500.0,0.0001,2]
[405863937,1771369842225,-151.0,0.0001,2]
[405863938,1771369842234,-500.0,0.0001,2]
[405863939,1771369842244,-151.0,0.0001,2]
[405863940,1771369842253,-151.0,0.0001,2]
[405863941,1771369842262,-151.0,0.0001,2]
[405863942,1771369842271,-151.0,0.0001,2]
[405863943,1771369842280,-151.0,0.0001,2]
[405863944,1771369842289,-200.0,0.0001,2]
[405863945,1771369842299,-151.0,0.0001,2]
[405863946,1771369842308,-151.0,0.0001,2]
[405863947,1771369842317,-151.0,0.0001,2]
[405863948,1771369842326,-151.0,0.0001,2]
[405863949,1771369842335,-151.0,0.0001,2]
[405863950,1771369842344,-151.0,0.0001,2]
[405863951,1771369842354,-151.0,0.0001,2]
[405863952,1771369842363,-151.0,0.0001,2]
[405863953,1771369842371,-151.0,0.0001,2]
[405863954,1771369842381,-151.0,0.0001,2]
[405863955,1771369842390,-151.0,0.0001,2]
[405863956,1771369842399,-151.0,0.0001,2]
[405863957,1771369842408,-151.0,0.0001,2]
[405863958,1771369842418,-500.0,0.0001,2]
[405863959,1771369842427,-500.0,0.0001,2]
[405863960,1771369842436,-500.0,0.0001,2]
[405863961,1771369842447,-500.0,0.0001,2]
[405863962,1771369842456,-500.0,0.0001,2]
[405863963,1771369842466,-500.0,0.0001,2]
[405863964,1771369842475,-500.0,0.0001,2]
[405863965,1771369842484,-500.0,0.0001,2]
[405863966,1771369842494,-500.0,0.0001,2]
[405863967,1771369842503,-500.0,0.0001,2]
[405863968,1771369842512,-500.0,0.0001,2]
[405863969,1771369842522,-337.0,0.0001,2]
[405863970,1771369842531,-337.0,0.0001,2]
[405863971,1771369842540,-337.85061866,0.0001,2]
[405863972,1771369842549,-175.22048755,0.0001,2]
[405863973,1771369842559,-1580.76891287,0.0001,2]
[405863974,1771369842569,-1580.76891287,0.0001,2]
[405863975,1771369842578,-393.71,0.00010046,2]
[405863976,1771369842587,-500.0,0.00010137,2]
[405863977,1771369842597,-898.32890406,0.00010146,2]
[405863978,1771369842606,-500.0,0.00010411,2]
[405863979,1771369842615,-433.69347785,0.00010479,2]
[405863980,1771369842624,-150.0,0.00010479,2]
[405863981,1771369842634,-393.71,0.00010502,2]
[405863982,1771369842643,-500.0,0.00010548,2]
[405863983,1771369842652,-200.0,0.00010548,2]
[405863984,1771369842661,-200.0,0.00010548,2]
[405863985,1771369842672,-1500.0,0.00010589,2]
[405863986,1771369842681,-500.0,0.00010685,2]
[405863987,1771369842690,-200.0,0.0001089,2]
[405863988,1771369842699,-5019.02576735,0.000109,2]
[405863989,1771369842709,-5019.02576734,0.000109,2]
[405863990,1771369842719,-5019.02576734,0.000109,2]
[405863991,1771369842728,-166.66,0.00010959,2]
[405863992,1771369842737,-500.0,0.00010959,2]
[405863993,1771369842747,-151.0,0.00010959,4]
[405863994,1771369842756,-184.46,0.00010959,2]
[405863995,1771369842765,-16891.69,0.00010959,2]
[405863996,1771369842774,-393.71,0.00010959,2]
[405863997,1771369842784,-1252.0,0.00010977,2]
[405863998,1771369842794,-1152.0,0.00010978,2]
[405863999,1771369842804,-4609.0,0.00010978,2]
[405864000,1771369842814,-173.355935,0.00011002,2]
[405864001,1771369842825,-166.66,0.00011068,2]
[405864002,1771369842834,-500.0,0.00011096,2]
[405864003,1771369842844,-200.0,0.00011096,2]
[405864004,1771369842853,-200.0,0.00011096,2]
[405864005,1771369842863,-49369.4090782,0.00011099,2]
[405864006,1771369842872,-49369.40907813,0.00011099,2]
[405864007,1771369842882,-49369.40907813,0.00011099,2]
[405864008,1771369842891,-49369.40907813,0.00011099,2]
[405864009,1771369842900,-166.66,0.00011178,2]
[405864010,1771369842909,-500.0,0.00011233,2]
[405864011,1771369842919,-166.66,0.00011288,2]
[405864012,1771369842928,-166.66,0.00011397,2]
[405864013,1771369842937,-393.71,0.00011416,2]
[405864014,1771369842947,-161.074023,0.0001143,2]
[405864015,1771369842956,-49369.40907813,0.00011445,2]
[405864016,1771369842966,-166.66,0.00011507,2]
[405864017,1771369842975,-500.0,0.00011507,2]
[405864018,1771369842984,-500.0,0.00011644,2]
[405864019,1771369842993,-200.0,0.00011644,2]
[405864020,1771369843003,-218.04759767,0.00011644,2]
[405864021,1771369843012,-763.76,0.00011672,2]
[405864022,1771369843021,-500.0,0.00011781,2]
[405864024,1771369843031,-166.66,0.00011804,2]
[405864025,1771369843040,-393.71,0.00011872,2]
[405864026,1771369843049,-5019.02576734,0.000119,2]
[405864027,1771369843058,-215.37,0.00011915,2]
[405864028,1771369843067,-468.51,0.00011963,2]
[405864029,1771369843076,-23006.18,0.00012055,2]
[405864030,1771369843085,-500.0,0.00012055,2]
[405864031,1771369843096,-1613.0,0.00012075,2]
[405864032,1771369843106,-6453.0,0.00012075,2]
[405864033,1771369843115,-2129.0,0.00012079,2]
[405864034,1771369843124,-500.0,0.00012173,2]
[405864035,1771369843133,-500.0,0.00012173,2]
[405864036,1771369843142,-500.0,0.00012173,2]
[405864037,1771369843151,-500.0,0.00012173,2]
[405864038,1771369843160,-500.0,0.00012173,2]
[405864039,1771369843169,-500.0,0.00012173,2]
[405864040,1771369843178,-500.0,0.00012173,2]
[405864041,1771369843187,-160.1837527,0.00012173,2]
[405864042,1771369843196,-160.37289206,0.00012173,2]
[405864043,1771369843205,-500.0,0.00012173,2]
[405864044,1771369843214,-545.77855618,0.00012173,2]
[405864045,1771369843224,-500.0,0.00012173,2]
[405864046,1771369843233,-500.0,0.00012173,2]
[405864047,1771369843242,-500.0,0.00012173,2]
[405864048,1771369843251,-500.0,0.00012173,2]
[405864049,1771369843260,-500.0,0.00012173,2]
[405864050,1771369843269,-500.0,0.00012173,2]
[405864051,1771369843278,-500.0,0.00012173,2]
[405864052,1771369843287,-500.0,0.00012173,2]
[405864053,1771369843296,-500.0,0.00012173,2]
[405864054,1771369843305,-500.0,0.00012173,2]
[405864056,1771369843314,-500.0,0.00012173,2]
[405864058,1771369843323,-500.0,0.00012173,2]
[405864060,1771369843332,-500.0,0.00012173,2]
[405864062,1771369843342,-218.33608313,0.00012173,2]
[405864064,1771369843351,-500.62727143,0.00012173,2]
[405864066,1771369843361,-500.0,0.00012173,2]
[405864067,1771369843370,-500.46642231,0.00012173,2]
[405864069,1771369843379,-500.0,0.00012173,2]
[405864070,1771369843388,-500.0,0.00012173,2]
[405864071,1771369843398,-500.0,0.00012173,2]
[405864072,1771369843407,-500.0,0.00012173,2]
[405864073,1771369843416,-500.0,0.00012192,2]
[405864074,1771369843425,-200.0,0.00012192,2]
[405864075,1771369843434,-166.66,0.00012194,2]
[405864076,1771369843443,-500.0,0.00012329,2]
[405864077,1771369843453,-393.71,0.00012329,2]
[405864078,1771369843462,-49369.40907813,0.00012457,2]
[405864079,1771369843471,-166.66,0.00012584,2]
[405864080,1771369843480,-500.0,0.00012603,2]
[405864081,1771369843489,-996.0200937,0.0001265,2]
[405864082,1771369843498,-12978.99200758,0.0001265,2]
[405864083,1771369843507,-228.57891647,0.00012721,2]
[405864084,1771369843517,-1002.81524174,0.00012721,2]
[405864085,1771369843526,-571.65229745,0.00012721,2]
[405864086,1771369843535,-1013.94571317,0.00012721,2]
[405864087,1771369843544,-509.22256369,0.00012721,2]
[405864088,1771369843553,-500.0,0.00012721,2]
[405864089,1771369843562,-1000.0,0.00012721,2]
[405864090,1771369843575,-1000.0,0.00012721,2]
[405864091,1771369843585,-1000.0,0.00012721,2]
[405864092,1771369843594,-1000.0,0.00012721,2]
[405864093,1771369843604,-544.40507509,0.00012721,2]
[405864094,1771369843613,-1000.0,0.00012721,2]
[405864095,1771369843623,-1000.0,0.00012721,2]
[405864096,1771369843644,-1000.0,0.00012721,2]
[405864097,1771369843653,-1000.0,0.00012721,2]
[405864098,1771369843663,-928.11420057,0.00012721,2]
[405864099,1771369843672,-1000.0,0.00012721,2]
[405864100,1771369843681,-1000.0,0.00012721,2]
[405864101,1771369843692,-1000.0,0.00012721,2]
[405864102,1771369843701,-501.82748142,0.00012721,2]
[405864103,1771369843710,-306.10762696,0.00012721,2]
[405864104,1771369843719,-1000.0,0.00012721,2]
[405864105,1771369843729,-615.3930462,0.00012721,2]
[405864106,1771369843738,-1071.24633497,0.00012721,2]
[405864107,1771369843748,-500.0,0.0001274,2]
[405864108,1771369843757,-200.0,0.0001274,2]
[405864109,1771369843766,-355.76,0.00012804,2]
[405864110,1771369843776,-150.0,0.0001283,2]
[405864111,1771369843785,-500.0,0.0001283,2]
[405864112,1771369843794,-500.0,0.0001283,2]
[405864113,1771369843803,-500.0,0.0001283,2]
[405864114,1771369843813,-150.0,0.0001283,2]
[405864115,1771369843823,-150.0,0.0001283,2]
[405864116,1771369843832,-150.0,0.0001283,2]
[405864117,1771369843842,-150.0,0.0001283,2]
[405864118,1771369843851,-500.0,0.0001283,2]
[405864119,1771369843861,-150.0,0.0001283,2]
[405864120,1771369843870,-500.0,0.0001283,2]
[405864121,1771369843880,-237.28842339,0.0001283,2]
[405864123,1771369843889,-500.0,0.0001283,2]
[405864124,1771369843898,-214.0121963,0.0001283,2]
[405864125,1771369843907,-271.46,0.00012877,2]
[405864126,1771369843916,-500.0,0.00012877,2]
[405864127,1771369843926,-150.0,0.00012885,2]
[405864128,1771369843935,-500.0,0.00012885,2]
[405864129,1771369843944,-500.0,0.00012885,2]
[405864130,1771369843953,-500.0,0.00012885,2]
[405864131,1771369843964,-244.28993987,0.00012885,2]
[405864132,1771369843974,-150.0,0.00012885,2]
[405864133,1771369843983,-150.0,0.00012885,2]
[405864134,1771369843992,-150.0,0.00012885,2]
[405864135,1771369844002,-500.0,0.00012885,2]
[405864136,1771369844011,-205.12968692,0.00012885,2]
[405864137,1771369844020,-649.65624143,0.00012885,2]
[405864138,1771369844030,-500.0,0.00012885,2]
[405864139,1771369844039,-150.0,0.0001294,2]
[405864140,1771369844048,-220.15883999,0.0001294,2]
[405864141,1771369844057,-152.12850518,0.0001294,2]
[405864142,1771369844067,-500.0,0.0001294,2]
[405864143,1771369844076,-150.0,0.0001294,2]
[405864144,1771369844085,-200.36674187,0.0001294,2]
[405864145,1771369844096,-200.18645604,0.0001294,2]
[405864146,1771369844106,-500.0,0.0001294,2]
[405864147,1771369844115,-500.0,0.0001294,2]
[405864148,1771369844124,-166.66,0.00012973,2]
[405864149,1771369844133,-295.69274942,0.00012994,2]
[405864150,1771369844144,-500.0,0.00012994,2]
[405864151,1771369844153,-200.89245722,0.00012994,2]
[405864152,1771369844162,-500.0,0.00012994,2]
[405864153,1771369844172,-500.0,0.00012994,2]
[405864154,1771369844182,-557.0,0.00013,2]
[405864155,1771369844191,-500.0,0.00013049,2]
[405864156,1771369844199,-500.0,0.00013049,2]
[405864157,1771369844209,-500.0,0.00013049,2]
[405864158,1771369844218,-500.0,0.00013104,2]
[405864159,1771369844228,-500.0,0.00013104,2]
[405864160,1771369844237,-500.0,0.00013104,2]
[405864161,1771369844246,-596.47581986,0.00013136,2]
[405864162,1771369844256,-500.0,0.00013151,2]
[405864163,1771369844266,-630.25617345,0.00013159,2]
[405864164,1771369844275,-382.17209928,0.00013159,2]
[405864165,1771369844284,-500.0,0.00013159,2]
[405864166,1771369844293,-500.0,0.00013214,2]
[405864167,1771369844302,-500.0,0.00013268,2]
[405864168,1771369844312,-1500.0,0.00013268,2]
[405864169,1771369844322,-1500.0,0.00013268,2]
[405864170,1771369844331,-806.86059886,0.00013268,2]
[405864171,1771369844341,-616.56100589,0.00013268,2]
[405864172,1771369844350,-623.71743587,0.00013268,2]
[405864174,1771369844358,-932.93855102,0.00013268,2]
[405864175,1771369844368,-344.71223806,0.00013268,2]
[405864176,1771369844378,-1500.0,0.00013268,2]
[405864177,1771369844387,-1000.0,0.00013268,2]
[405864178,1771369844397,-1513.76878479,0.00013268,2]
[405864179,1771369844406,-1500.0,0.00013268,2]
[405864180,1771369844416,-1500.0,0.00013268,2]
[405864181,1771369844425,-1534.0,0.00013283,2]
[405864182,1771369844435,-9035.0,0.00013283,2]
[405864183,1771369844444,-3620.0,0.00013286,2]
[405864184,1771369844453,-500.0,0.00013288,2]
[405864185,1771369844462,-200.0,0.00013288,2]
[405864186,1771369844471,-500.0,0.00013323,2]
[405864187,1771369844480,-166.66,0.00013363,2]
[405864188,1771369844490,-500.0,0.00013378,2]
[405864189,1771369844499,-5019.02576734,0.000134,2]
[405864190,1771369844509,-500.0,0.00013425,2]
[405864191,1771369844518,-500.0,0.00013433,2]
[405864192,1771369844528,-151.0,0.00013452,4]
[405864193,1771369844537,-224.65460803,0.00013488,2]
[405864194,1771369844546,-160.0,0.0001368,2]
[405864195,1771369844556,-173.57638878,0.0001368,2]
[405864196,1771369844565,-500.0,0.00013698,2]
[405864197,1771369844575,-500.0,0.00013698,2]
[405864198,1771369844584,-500.0,0.00013698,2]
[405864199,1771369844593,-500.0,0.00013698,2]
[405864200,1771369844603,-500.0,0.00013698,2]
[405864201,1771369844612,-213.96435398,0.00013698,2]
[405864202,1771369844621,-172.09485914,0.00013698,2]
[405864203,1771369844631,-500.0,0.00013698,2]
[405864204,1771369844640,-500.0,0.00013698,2]
[405864205,1771369844649,-1013.23,0.00013698,2]
[405864206,1771369844659,-1013.23,0.00013698,2]
[405864207,1771369844668,-1013.23,0.00013698,2]
[405864208,1771369844677,-1013.23,0.00013698,2]
[405864209,1771369844686,-1013.23,0.00013698,2]
[405864210,1771369844696,-1013.23,0.00013698,2]
[405864211,1771369844705,-1013.23,0.00013698,2]
[405864212,1771369844714,-1013.23,0.00013698,2]
[405864213,1771369844723,-1013.23,0.00013698,2]
[405864214,1771369844733,-1013.23,0.00013698,2]
[405864215,1771369844742,-1013.23,0.00013698,2]
[405864216,1771369844751,-1013.23,0.00013698,2]
[405864217,1771369844760,-1013.23,0.00013698,2]
[405864218,1771369844770,-1013.23,0.00013698,2]
[405864219,1771369844779,-1013.23,0.00013698,2]
[405864220,1771369844788,-1013.23,0.00013698,2]
[405864221,1771369844798,-1013.23,0.00013698,2]
[405864222,1771369844807,-1013.23,0.00013698,2]
[405864223,1771369844816,-649.58,0.00013698,2]
[405864224,1771369844826,-649.58,0.00013698,2]
[405864225,1771369844836,-649.58,0.00013698,2]
[405864226,1771369844845,-649.58,0.00013698,2]
[405864227,1771369844854,-649.58,0.00013698,2]
[405864228,1771369844863,-649.58,0.00013698,2]
[405864229,1771369844873,-649.58,0.00013698,2]
[405864230,1771369844882,-649.58,0.00013698,2]
[405864231,1771369844891,-649.58,0.00013698,2]
[405864232,1771369844900,-649.58,0.00013698,2]
[405864233,1771369844909,-649.58,0.00013698,2]
[405864234,1771369844918,-649.58,0.00013698,2]
[405864235,1771369844928,-649.58,0.00013698,2]
[405864236,1771369844937,-649.58,0.00013698,2]
[405864237,1771369844947,-649.58,0.00013698,2]
[405864238,1771369844956,-649.58,0.00013698,2]
[405864239,1771369844965,-177.26877072,0.00013698,2]
[405864240,1771369846019,-49369.40907813,0.00013468,2]
[405864241,1771369846029,-472.31122928,0.00013698,2]
[405864242,1771369846038,-649.58,0.00013698,2]
[405864243,1771369846047,-1180.75,0.00013698,2]
[405864244,1771369846057,-1180.75,0.00013698,2]
[405864245,1771369846066,-1180.75,0.00013698,2]
[405864246,1771369846075,-1180.75,0.00013698,2]
[405864247,1771369846084,-1180.75,0.00013698,2]
[405864248,1771369846095,-1180.75,0.00013698,2]
[405864249,1771369846106,-1180.75,0.00013698,2]
[405864250,1771369846115,-1180.75,0.00013698,2]
[405864251,1771369846124,-1180.75,0.00013698,2]
[405864252,1771369846134,-1180.75,0.00013698,2]
[405864253,1771369846146,-1180.75,0.00013698,2]
[405864254,1771369846155,-1180.75,0.00013698,2]
[405864255,1771369846164,-1180.75,0.00013698,2]
[405864256,1771369846174,-1180.75,0.00013698,2]
[405864257,1771369846184,-1180.75,0.00013698,2]
[405864258,1771369846193,-1180.75,0.00013698,2]
[405864259,1771369846202,-1180.75,0.00013698,2]
[405864260,1771369846211,-1180.75,0.00013698,2]
[405864261,1771369846220,-500.0,0.00013698,2]
[405864262,1771369846230,-536.56841648,0.00013698,2]
[405864263,1771369846239,-546.97,0.00013698,2]
[405864264,1771369846248,-546.97,0.00013698,2]
[405864265,1771369846258,-546.97,0.00013698,2]
[405864266,1771369846267,-546.97,0.00013698,2]
[405864267,1771369846276,-546.97,0.00013698,2]
[405864268,1771369846285,-546.97,0.00013698,2]
[405864269,1771369846294,-546.97,0.00013698,2]
[405864270,1771369846303,-546.97,0.00013698,2]
[405864271,1771369846312,-546.97,0.00013698,2]
[405864272,1771369846321,-546.97,0.00013698,2]
[405864273,1771369846331,-546.97,0.00013698,2]
[405864274,1771369846340,-546.97,0.00013698,2]
[405864275,1771369846349,-546.97,0.00013698,2]
[405864276,1771369846358,-546.97,0.00013698,2]
[405864277,1771369846367,-546.97,0.00013698,2]
[405864278,1771369846376,-546.97,0.00013698,2]
[405864279,1771369846385,-546.97,0.00013698,2]
[405864280,1771369846394,-546.97,0.00013698,2]
[405864281,1771369846404,-500.0,0.00013698,2]
[405864282,1771369846413,-500.0,0.00013698,2]
[405864283,1771369846422,-500.0,0.00013698,2]
[405864284,1771369846432,-500.0,0.00013698,2]
[405864285,1771369846441,-500.0,0.00013698,2]
[405864287,1771369846451,-500.0,0.00013698,2]
[405864288,1771369846460,-500.0,0.00013698,2]
[405864289,1771369846470,-500.0,0.00013698,2]
[405864290,1771369846479,-500.0,0.00013698,2]
[405864291,1771369846489,-500.0,0.00013698,2]
[405864292,1771369846498,-500.0,0.00013698,2]
[405864293,1771369846508,-500.0,0.00013698,2]
[405864294,1771369846517,-500.0,0.00013698,2]
[405864295,1771369846526,-500.0,0.00013698,2]
[405864296,1771369846536,-500.0,0.00013698,2]
[405864297,1771369846546,-500.0,0.00013698,2]
[405864298,1771369846556,-500.0,0.00013698,2]
[405864299,1771369846565,-500.0,0.00013698,2]
[405864300,1771369846575,-500.0,0.00013698,2]
[405864301,1771369846585,-500.0,0.00013698,2]
[405864302,1771369846594,-500.0,0.00013698,2]
[405864303,1771369846604,-500.0,0.00013698,2]
[405864304,1771369846614,-500.0,0.00013698,2]
[405864305,1771369846623,-500.0,0.00013698,2]
[405864306,1771369846634,-500.0,0.00013698,2]
[405864307,1771369846643,-500.0,0.00013698,2]
[405864308,1771369846653,-500.0,0.00013698,2]
[405864309,1771369846662,-500.0,0.00013698,2]
[405864310,1771369846671,-500.0,0.00013698,2]
[405864311,1771369846681,-600.82615766,0.00013698,2]
[405864312,1771369846690,-1479.1,0.00013698,2]
[405864313,1771369846699,-1479.1,0.00013698,2]
[405864314,1771369846710,-1479.1,0.00013698,2]
[405864315,1771369846719,-1479.1,0.00013698,2]
[405864316,1771369846729,-1479.1,0.00013698,2]
[405864317,1771369846738,-1479.1,0.00013698,2]
[405864318,1771369846748,-1479.1,0.00013698,2]
[405864319,1771369846757,-1479.1,0.00013698,2]
[405864320,1771369846767,-1479.1,0.00013698,2]
[405864321,1771369846776,-1479.1,0.00013698,2]
[405864322,1771369846786,-1479.1,0.00013698,2]
[405864323,1771369846795,-1479.1,0.00013698,2]
[405864324,1771369846805,-1479.1,0.00013698,2]
[405864325,1771369846814,-1479.1,0.00013698,2]
[405864326,1771369846824,-1479.1,0.00013698,2]
[405864327,1771369846833,-1479.1,0.00013698,2]
[405864328,1771369846842,-1479.1,0.00013698,2]
[405864329,1771369846852,-1479.1,0.00013698,2]
[405864330,1771369846861,-2052.7,0.00013698,2]
[405864331,1771369846870,-2052.7,0.00013698,2]
[405864332,1771369846880,-2052.7,0.00013698,2]
[405864333,1771369846889,-2052.7,0.00013698,2]
[405864334,1771369846898,-2052.7,0.00013698,2]
[405864335,1771369846908,-2052.7,0.00013698,2]
[405864336,1771369846916,-2052.7,0.00013698,2]
[405864337,1771369846926,-2052.7,0.00013698,2]
[405864338,1771369846935,-2052.7,0.00013698,2]
[405864339,1771369846944,-2052.7,0.00013698,2]
[405864340,1771369846954,-2052.7,0.00013698,2]
[405864341,1771369846963,-2052.7,0.00013698,2]
[405864342,1771369846972,-2052.7,0.00013698,2]